bitfinex/quotes_ETHUSD_20241216
["timestamp","ask_amount","ask_price","bid_price","bid_amount"]
[1734370185496,41.11109908,3984.1,3984.0,26.72471809]
[1734370185791,26.4078108,3984.1,3984.0,24.1544734]
[1734370185954,21.39191351,3984.1,3984.0,24.1544734]
[1734370186149,19.82567351,3984.1,3984.0,24.1544734]
[1734370186353,19.82567351,3984.1,3984.0,26.72128271]
[1734370187091,15.80645351,3984.1,3984.0,26.72128271]
[1734370187497,15.66004838,3984.1,3984.0,26.72128271]
[1734370187706,2.56526436,3984.1,3984.0,26.72128271]
[1734370187863,1.44996436,3984.1,3984.0,26.72128271]
[1734370188198,9.99,3984.5,3984.2,1.502]
[1734370188355,9.99,3984.5,3984.4,5.052]
[1734370188556,9.99,3984.5,3984.4,26.75315007]
[1734370189007,9.98080195,3984.5,3984.4,18.81458532]
[1734370189209,13.20646031,3984.5,3984.4,18.31358532]
[1734370189426,2.00821883,3984.5,3984.4,23.60964668]
[1734370189631,63.24577587,3984.9,3984.4,23.60964668]
[1734370189632,54.46019331,3984.9,3984.8,4.965]
[1734370189831,52.96149331,3984.9,3984.8,42.62219414]
[1734370189996,52.96149331,3984.9,3984.8,44.74221545]
[1734370189997,51.1061328,3984.9,3984.8,44.74221545]
[1734370190323,50.8783328,3984.9,3984.8,44.74221545]
[1734370190539,40.50682416,3984.9,3984.8,42.62219414]
[1734370191316,40.50682416,3984.9,3984.8,45.31804226]
[1734370192031,38.96802417,3984.9,3984.8,45.57675039]
[1734370192212,38.96802417,3984.9,3984.8,45.57564052]
[1734370192524,36.24474879,3984.9,3984.8,43.01416372]
[1734370192943,35.6657488,3984.9,3984.8,43.01416372]
[1734370193089,32.22958061,3984.9,3984.8,47.64229435]
[1734370193289,31.94608465,3984.9,3984.8,47.50815561]
[1734370193522,14.93230885,3984.9,3984.8,47.75436994]
[1734370193738,14.93230885,3984.9,3984.8,51.36239885]
[1734370194052,3.47501102,3985.4,3985.3,5.052]
[1734370194203,3.47501102,3985.4,3985.3,40.7603756]
[1734370194401,3.47501102,3985.4,3985.3,44.6660612]
[1734370194832,3.47501102,3985.4,3985.3,42.54830786]
[1734370195242,3.47501102,3985.4,3985.3,44.38003134]
[1734370195561,3.47501102,3985.4,3985.3,42.2633756]
[1734370195716,3.47501102,3985.4,3985.3,42.00466747]
[1734370195920,3.47501102,3985.4,3985.3,44.05144325]
[1734370196138,3.47501102,3985.4,3985.3,44.05143407]
[1734370196460,3.47501102,3985.4,3985.3,42.00466747]
[1734370197348,3.47501102,3985.4,3985.3,40.30770065]
[1734370198267,3.47501102,3985.4,3985.3,41.33052846]
[1734370198467,3.47501102,3985.4,3985.3,40.30770065]
[1734370199387,3.47501102,3985.4,3985.3,41.33052846]
[1734370199545,3.33,3986.6,3985.4,0.55]
[1734370199745,3.33,3986.6,3985.5,37.45944165]
[1734370200076,3.33,3986.6,3985.5,37.850986]
[1734370200303,0.5472371,3985.6,3985.5,37.850986]
[1734370202456,0.5472371,3985.6,3985.5,38.621086]
[1734370202785,0.5472371,3985.6,3985.5,39.46593934]
[1734370202987,0.5472371,3985.6,3985.5,38.621086]
[1734370203485,0.5472371,3985.6,3985.5,41.258086]
[1734370203641,0.5472371,3985.6,3985.5,37.300986]
[1734370205035,0.5472371,3985.6,3985.5,38.68805972]
[1734370205238,0.5472371,3985.6,3985.5,41.04892438]
[1734370205481,0.5472371,3985.6,3985.5,41.34892438]
[1734370205684,0.5472371,3985.6,3985.5,41.06938292]
[1734370205895,0.5472371,3985.6,3985.5,38.673586]
[1734370206397,0.1145171,3985.7,3985.6,5.053]
[1734370206537,0.1145171,3985.7,3985.6,37.850886]
[1734370206740,15.22509714,3985.8,3985.6,40.487886]
[1734370206995,11.95937134,3985.8,3985.6,10.199]
[1734370207157,10.70523134,3985.8,3985.7,37.978886]
[1734370207493,10.70523134,3985.8,3985.7,34.224612]
[1734370207795,10.70523134,3985.8,3985.7,33.103297]
[1734370207975,10.70523134,3985.8,3985.7,1.503]
[1734370207976,6.94281134,3985.8,3985.7,1.503]
[1734370208138,7.73881134,3985.8,3985.7,0.87324]
[1734370208957,3.97645134,3985.8,3985.7,0.87324]
[1734370209242,3.97645134,3985.8,3985.7,3.87324]
[1734370210191,0.21412134,3985.8,3985.7,3.87324]
[1734370210584,0.21412134,3985.8,3985.7,14.355523]
[1734370210898,5.62001134,3986.0,3985.7,14.355523]
[1734370211046,1.85762134,3986.0,3985.7,3.87324]
[1734370211452,1.51776213,3985.9,3985.7,0.87324]
[1734370211675,1.51776213,3985.9,3985.6,2.509]
[1734370212194,0.59878098,3985.9,3985.6,2.509]
[1734370212544,0.03136377,3985.8,3985.6,2.509]
[1734370213371,0.03136377,3985.8,3985.6,1.49755345]
[1734370213685,0.24877661,3985.7,3983.6,0.02509305]
[1734370213991,0.8194,3985.5,3983.4,1.503]
[1734370214149,0.8194,3985.3,3983.4,1.503]
[1734370214347,0.81597202,3985.2,3983.1,1.503]
[1734370214547,0.81597202,3985.2,3983.3,1.503]
[1734370215473,0.81597202,3985.2,3983.8,0.1250457]
[1734370216680,0.7846,3985.2,3983.9,0.55]
[1734370217477,0.03137087,3985.1,3983.9,0.55]
[1734370217799,0.7993,3985.0,3983.5,0.55]
[1734370217951,0.78337393,3984.9,3983.5,0.55]
[1734370218386,0.78337393,3984.9,3983.5,2.053]
[1734370218689,0.78337393,3984.9,3983.5,0.55]
[1734370218873,0.78337393,3984.9,3983.5,0.51064]
[1734370219891,3.93e-06,3984.9,3983.5,2.01364]
[1734370220590,3.93e-06,3984.9,3983.5,2.22752812]
[1734370220793,3.35e-06,3985.5,3983.5,2.22752812]
[1734370220954,3.35e-06,3985.5,3983.5,5.22752812]
[1734370221151,3.35e-06,3985.5,3983.7,2.053]
[1734370221374,3.35e-06,3985.5,3983.7,5.053]
[1734370221782,3.35e-06,3985.5,3983.4,0.12524118]
[1734370222259,0.55000335,3985.5,3982.2,0.7566]
[1734370222908,0.55000335,3985.5,3982.3,1.503]
[1734370223053,0.55000335,3985.5,3982.2,0.7566]
[1734370223054,2.82541757,3985.2,3983.1,0.12491542]
[1734370223767,0.7536,3984.3,3982.5,1.503]
[1734370223967,0.7536,3984.3,3981.2,1.503]
[1734370224489,0.7536,3984.3,3981.1,0.8041]
[1734370224490,0.7536,3984.3,3982.4,1.503]
[1734370224697,0.7536,3984.3,3982.4,1.49316]
[1734370224878,0.7832,3984.1,3980.7,0.8202]
[1734370225084,0.7832,3984.1,3980.8,1.503]
[1734370225394,0.7832,3984.1,3980.8,1.5281121]
[1734370225808,0.7832,3984.1,3981.6,1.503]
[1734370226112,0.7832,3984.1,3982.0,1.503]
[1734370226313,0.7832,3984.1,3982.2,1.503]
[1734370226800,0.1177,3984.0,3983.4,0.25103]
[1734370227174,2.82541757,3984.0,3982.2,1.503]
[1734370227355,2.82541757,3984.0,3982.0,0.12238786]
[1734370227356,2.82541757,3984.0,3982.7,0.25108]
[1734370227806,2.82541757,3984.4,3983.6,3.0]
[1734370228017,0.5823,3984.2,3983.7,0.25102]
[1734370228302,0.5823,3984.2,3982.4,3.0]
[1734370228303,0.28254176,3984.3,3982.0,1.62538786]
[1734370228504,0.28254176,3984.3,3984.2,0.25099]
[1734370228714,3.07541757,3984.8,3984.2,0.25099]
[1734370228858,3.07541757,3984.8,3984.3,0.25098]
[1734370229167,0.25,3985.0,3984.7,0.25095]
[1734370229168,0.55,3984.9,3984.7,0.25095]
[1734370229372,2.82541757,3985.0,3984.7,0.25095]
[1734370229373,0.66894176,3984.8,3984.7,0.25095]
[1734370229567,0.33754176,3984.8,3984.4,0.25097]
[1734370229957,0.33754176,3984.8,3984.5,0.25096]
[1734370230425,0.33754176,3984.8,3984.4,0.25097]
[1734370230697,0.33754176,3984.8,3984.0,0.25099]
[1734370230904,2.82541757,3984.6,3984.0,0.25099]
[1734370231060,2.82541757,3984.6,3984.3,3.0]
[1734370231254,2.82541757,3984.6,3983.3,0.25104]
[1734370231458,2.82541757,3984.6,3984.3,0.25098]
[1734370231871,2.82541757,3984.6,3984.1,0.25099]
[1734370232176,2.82541757,3984.6,3983.4,0.25103]
[1734370232177,0.55,3984.1,3983.4,0.25103]
[1734370232504,2.82541757,3983.7,3983.4,0.25103]
[1734370233015,2.82541757,3983.7,3983.1,0.25105]
[1734370233208,2.82541757,3983.3,3981.6,1.503]
[1734370233531,2.82541757,3983.3,3981.5,0.25115]
[1734370233532,2.82541757,3982.9,3981.5,0.25115]
[1734370233663,2.82541757,3982.5,3981.5,0.25115]
[1734370234001,0.28254176,3982.4,3981.2,0.25118]
[1734370234248,0.28254176,3982.4,3979.8,0.25126]
[1734370234249,0.28254176,3982.4,3982.2,0.25111]
[1734370234904,0.28254176,3982.4,3980.3,0.75369]
[1734370235099,0.28254176,3982.4,3980.2,1.503]
[1734370235509,0.28254176,3982.4,3982.2,0.25111]
[1734370235730,2.82541757,3982.5,3982.2,0.25111]
[1734370235731,0.31079593,3982.3,3982.2,0.25111]
[1734370236332,0.55,3983.0,3982.7,0.25108]
[1734370237146,0.55,3983.0,3982.2,0.25111]
[1734370237349,0.55,3983.0,3981.0,0.25119]
[1734370237646,0.55,3983.0,3980.5,1.62610769]
[1734370237647,0.55,3983.0,3982.5,0.24863]
[1734370237849,0.45335421,3982.9,3982.5,0.24863]
[1734370238407,3.48354211,3982.6,3981.7,3.25114]
[1734370238611,3.48354211,3982.6,3982.2,0.25111]
[1734370239618,3.48354211,3982.6,3982.3,0.2511]
[1734370239814,3.48354211,3982.6,3981.5,3.0]
[1734370240067,0.37335421,3982.5,3982.4,0.2511]
[1734370240620,0.45335421,3982.9,3982.8,0.25107]
[1734370241047,0.25,3983.3,3982.9,0.25107]
[1734370241556,0.25,3983.3,3983.2,0.25105]
[1734370241759,0.25,3983.3,3982.8,0.25107]
[1734370241760,3.48354211,3983.6,3982.2,0.25111]
[1734370241960,3.73354211,3984.0,3983.7,0.25101]
[1734370242166,0.39835421,3983.9,3982.7,0.25108]
[1734370242371,3.48354211,3983.5,3983.2,0.25104]
[1734370242528,3.48354211,3983.5,3983.3,0.25104]
[1734370242728,3.48354211,3983.5,3983.4,0.25104]
[1734370243064,3.73354211,3984.0,3981.6,0.25114]
[1734370243264,0.44395036,3984.5,3983.8,0.25101]
[1734370243265,0.37335421,3983.9,3983.8,0.25101]
[1734370243466,3.92749247,3984.5,3981.4,4.503]
[1734370243467,3.48354211,3984.0,3983.4,0.25104]
[1734370243764,3.48354211,3984.0,3983.6,0.25102]
[1734370243922,0.5,3984.1,3983.8,0.25101]
[1734370244117,0.5,3984.1,3984.0,0.251]
[1734370244118,0.25,3984.1,3984.0,0.251]
[1734370244319,4.17749247,3984.5,3983.2,0.25105]
[1734370244593,0.41774925,3984.4,3984.3,0.25098]
[1734370244877,0.31667135,3984.5,3983.1,0.25106]
[1734370244878,0.31667135,3984.5,3984.4,0.25097]
[1734370245724,0.12382817,3985.9,3985.3,0.25092]
[1734370246527,0.203326,3985.0,3984.6,0.25096]
[1734370247072,0.203326,3985.0,3984.9,0.25094]
[1734370248552,6e-06,3985.0,3984.9,0.25094]
[1734370255407,6.6e-06,3985.0,3984.9,0.25094]
[1734370257308,4.1508466,3985.4,3985.3,0.25092]
[1734370257924,2.8963266,3985.4,3985.3,0.25092]
[1734370259580,1.2013866,3985.4,3985.3,0.25092]
[1734370262043,1.2013866,3985.4,3985.3,3.25092]
[1734370262403,3.31952526,3985.4,3985.3,0.25092]
[1734370263540,3.31952526,3985.4,3983.7,1.503]
[1734370263917,3.31952526,3985.4,3985.2,0.25092]
[1734370264378,3.31952526,3985.4,3984.8,0.25095]
[1734370264780,3.31952526,3985.4,3985.3,0.25092]
[1734370266139,3.31952526,3985.4,3983.8,0.7648]
[1734370266367,2.32995253,3985.3,3983.1,2.2678]
[1734370266638,1.39278145,3985.2,3983.1,2.2678]
[1734370266847,3.7055454,3985.2,3983.1,0.7648]
[1734370266988,0.55,3985.0,3983.1,0.7648]
[1734370267791,0.55,3985.0,3981.6,0.8112]
[1734370267987,1.5985742,3985.0,3982.7,0.8112]
[1734370268240,0.84302833,3984.9,3982.8,0.02510788]
[1734370268420,0.95865011,3985.1,3983.0,0.8112]
[1734370268704,2.32995253,3985.3,3983.3,1.503]
[1734370268901,0.23307736,3985.2,3983.3,1.503]
[1734370269146,0.23307736,3985.1,3983.3,1.503]
[1734370269292,3.33,3984.9,3983.3,1.503]
[1734370269486,0.5893851,3984.8,3983.4,1.72935]
[1734370269688,0.23307736,3984.7,3983.4,1.72935]
[1734370269931,0.23307736,3984.6,3983.4,1.72935]
[1734370270234,0.23307736,3984.5,3983.4,1.72935]
[1734370270401,0.23307736,3984.4,3983.4,1.503]
[1734370270624,3.33,3984.9,3983.4,1.503]
[1734370270791,3.33,3984.9,3983.8,1.503]
[1734370270792,0.82952,3984.9,3983.8,1.503]
[1734370270993,0.82952,3984.9,3983.9,0.7682]
[1734370271490,1.2013866,3985.4,3983.9,0.7682]
[1734370271697,2.11813866,3985.3,3983.9,0.7682]
[1734370272099,2.11813866,3985.3,3984.0,1.503]
[1734370272499,3.33,3985.0,3984.0,1.503]
[1734370272909,3.33,3985.0,3983.6,1.503]
[1734370274511,3.33,3985.0,3983.5,0.7933]
[1734370274746,0.333,3984.9,3983.5,0.7933]
[1734370275999,0.333,3984.9,3983.1,0.8028]
[1734370276256,0.333,3984.9,3983.0,1.503]
[1734370276436,3.4891051,3984.9,3983.0,1.503]
[1734370276615,0.842931,3984.8,3983.0,1.503]
[1734370276818,0.55545052,3984.7,3983.0,1.503]
[1734370277020,0.55545052,3984.7,3982.7,0.8028]
[1734370277338,0.55,3984.6,3982.7,2.3058]
[1734370278653,0.55545052,3984.7,3982.7,2.3058]
[1734370278850,0.19370247,3984.6,3982.9,1.503]
[1734370279005,0.55545052,3984.7,3982.9,1.503]
[1734370279356,0.55545052,3984.7,3980.7,1.27282781]
[1734370279357,0.55,3984.6,3982.6,1.503]
[1734370279577,1.39309748,3984.6,3982.6,1.503]
[1734370279739,0.55,3984.6,3982.5,1.503]
[1734370279939,0.21540247,3984.5,3982.5,1.503]
[1734370281141,0.21540247,3984.5,3983.8,3.0]
[1734370281343,0.21540247,3984.5,3982.5,1.503]
[1734370281674,0.84387698,3984.4,3982.5,1.503]
[1734370282122,0.8196509,3984.4,3982.5,1.503]
[1734370282324,0.20836276,3984.3,3982.7,1.503]
[1734370282767,1.0485742,3984.5,3982.7,1.503]
[1734370283285,1.26617241,3984.4,3982.7,1.503]
[1734370283443,1.26617241,3984.4,3982.5,3.0]
[1734370283444,1.0485742,3984.5,3982.5,3.0]
[1734370283644,1.5985742,3983.9,3981.4,1.503]
[1734370283851,1.5985742,3983.5,3981.4,1.72858]
[1734370284169,1.5985742,3983.5,3979.9,0.77372988]
[1734370284170,0.55,3983.1,3980.9,0.7528]
[1734370284388,0.60826647,3983.0,3980.9,0.7528]
[1734370284545,0.60826647,3982.9,3981.0,1.503]
[1734370284749,0.82895054,3982.8,3981.1,1.74120516]
[1734370285086,0.60826647,3982.7,3981.1,1.74120516]
[1734370285228,0.60826647,3982.6,3981.1,1.74120516]
[1734370285435,0.60826647,3982.5,3981.1,1.74120516]
[1734370285631,0.22068407,3982.8,3981.1,1.74120516]
[1734370285867,0.23362054,3982.4,3981.1,1.74120516]
[1734370286191,0.6074134,3982.3,3981.1,1.503]
[1734370286368,0.6074134,3982.2,3980.9,0.7528]
[1734370286531,0.6074134,3982.1,3981.0,1.50714]
[1734370286859,0.6074134,3982.0,3981.9,0.50227]
[1734370287240,0.23362054,3982.0,3981.9,0.50227]
[1734370288643,0.23362054,3982.0,3981.9,3.50227]
[1734370288844,0.23362054,3982.0,3981.9,0.50227]
[1734370289050,0.23325139,3982.0,3981.9,0.50227]
[1734370290948,0.60645362,3982.0,3981.9,0.50227]
[1734370291366,0.23325139,3982.0,3981.9,0.50227]
[1734370291978,3.62e-06,3982.2,3982.1,0.50224]
[1734370292284,1.0485742,3983.2,3982.4,0.5022]
[1734370292434,0.26214355,3983.1,3982.9,0.50213]
[1734370292779,2.83816951,3983.0,3982.3,0.50221]
[1734370292997,1.04428473,3982.8,3982.3,0.50221]
[1734370293135,2.30959294,3982.7,3982.3,0.50221]
[1734370293489,1.04428473,3982.7,3982.3,0.50221]
[1734370293690,1.04428473,3982.7,3980.8,0.7713]
[1734370293691,0.55,3982.4,3980.4,1.00492]
[1734370293836,0.55,3982.4,3980.3,0.50246]
[1734370293837,1.59428473,3982.4,3980.3,0.50246]
[1734370294200,1.51510211,3982.5,3981.3,0.50233]
[1734370294201,4.03205023,3982.2,3981.3,0.50233]
[1734370294339,4.03205023,3982.2,3981.1,0.50237]
[1734370294340,0.55,3982.0,3981.1,0.50237]
[1734370294555,0.8,3981.8,3980.3,0.50246]
[1734370294756,0.8,3981.8,3981.1,0.50236]
[1734370294757,3.10894163,3981.8,3981.1,0.50236]
[1734370295071,0.55,3981.6,3981.1,0.50236]
[1734370295269,0.55,3981.6,3979.7,0.7713]
[1734370295479,1.67842844,3981.9,3979.7,0.898686]
[1734370295813,1.84428473,3982.1,3981.6,0.50231]
[1734370296095,1.84428473,3982.1,3979.7,0.898686]
[1734370296096,0.55,3981.8,3981.2,0.50235]
[1734370296302,0.55,3981.8,3980.8,0.5024]
[1734370296469,0.55,3981.8,3979.3,0.7904]
[1734370296677,2.6e-06,3980.9,3980.8,0.50241]
[1734370296858,1.5728613,3982.3,3980.8,0.50241]
[1734370296859,0.12668481,3982.2,3981.0,1.00476]
[1734370297058,0.12668481,3982.2,3980.9,0.50239]
[1734370297270,0.12668481,3982.2,3980.8,0.50241]
[1734370297271,0.5117146,3982.6,3982.1,0.50224]
[1734370297469,0.2617146,3982.6,3982.1,0.50224]
[1734370297684,1.5728613,3983.0,3982.2,0.50223]
[1734370297685,0.18059993,3982.5,3982.2,0.50223]
[1734370297897,1.04428473,3982.9,3981.2,1.00472]
[1734370297898,0.25,3982.8,3981.2,1.00472]
[1734370298099,1.04428473,3982.9,3982.2,0.50222]
[1734370298309,1.29428473,3983.0,3982.2,0.50222]
[1734370298603,1.29428473,3983.0,3981.1,0.50237]
[1734370298604,1.26207894,3982.9,3981.1,0.50237]
[1734370298816,1.5728613,3983.2,3982.7,0.50217]
[1734370298817,0.38344983,3982.8,3982.7,0.50217]
[1734370298960,1.04428473,3983.6,3983.1,0.5021]
[1734370299162,1.04428473,3983.6,3981.1,0.50237]
[1734370299163,1.04428473,3983.7,3983.2,0.5021]
[1734370299357,0.25,3983.7,3983.0,0.50213]
[1734370299609,0.12643795,3983.4,3982.2,0.50223]
[1734370299787,0.12643795,3983.4,3983.1,0.50211]
[1734370300188,0.12643795,3983.4,3982.9,0.50214]
[1734370300386,0.12643795,3983.4,3982.6,0.50217]
[1734370300717,0.55,3983.3,3982.6,0.50217]
[1734370300910,1.04428473,3983.8,3983.3,0.50208]
[1734370301107,1.96567835,3983.8,3982.0,1.00452]
[1734370301265,1.26176865,3983.7,3982.9,0.50213]
[1734370301462,1.96567835,3983.8,3982.9,0.50213]
[1734370301709,4.52633496,3983.6,3982.4,0.50219]
[1734370301916,3.48205023,3983.1,3981.5,3.0]
[1734370302136,1.59428473,3982.9,3981.9,0.50227]
[1734370302314,0.55,3982.7,3981.9,0.50227]
[1734370302513,0.55,3982.5,3981.9,0.50227]
[1734370302893,0.55,3982.7,3980.6,0.7985]
[1734370303095,0.55,3982.4,3982.3,0.50221]
[1734370303292,0.37262164,3982.4,3982.3,0.50221]
[1734370303724,0.55,3982.3,3981.8,0.50228]
[1734370304023,0.55,3982.1,3980.6,0.50242]
[1734370304225,0.38857031,3981.2,3981.1,0.50237]
[1734370304390,1.8228613,3982.7,3980.8,0.50241]
[1734370304391,0.37312335,3981.8,3980.8,0.5024]
[1734370304594,0.55,3982.7,3981.7,0.50229]
[1734370304926,0.55,3982.5,3980.9,1.30769]
[1734370305228,0.55,3982.5,3982.3,0.50222]
[1734370305383,0.55,3982.5,3981.0,0.50238]
[1734370305583,0.55,3982.5,3982.3,0.50221]
[1734370305815,0.55,3982.5,3982.4,0.5022]
[1734370306128,1.5728613,3983.2,3981.1,0.50237]
[1734370306129,1.04428473,3983.1,3982.8,0.50215]
[1734370306426,1.04428473,3983.1,3980.4,1.503]
[1734370306427,0.2617146,3983.0,3982.9,0.50214]
[1734370306584,2.9010818,3983.5,3982.5,0.50218]
[1734370306779,0.84150662,3983.4,3982.5,0.50218]
[1734370307090,0.85324307,3983.5,3982.7,0.50216]
[1734370307434,1.16780267,3983.6,3983.1,0.5021]
[1734370307633,0.84167,3983.5,3982.7,0.50216]
[1734370307834,1.04428473,3983.5,3981.8,0.8119]
[1734370307999,1.26255218,3983.4,3981.8,0.8119]
[1734370308185,1.04428473,3983.5,3982.0,0.50226]
[1734370308186,0.55,3983.5,3982.0,0.50226]
[1734370308385,0.55,3983.3,3982.0,0.50226]
[1734370308585,0.55,3983.3,3982.1,0.50224]
[1734370308902,0.55,3983.3,3983.2,0.5021]
[1734370309099,0.55,3983.3,3982.2,0.50223]
[1734370309300,0.55,3983.3,3983.2,0.5021]
[1734370309534,0.74707729,3983.3,3982.4,0.5022]
[1734370309939,0.74707729,3983.3,3982.0,0.50226]
[1734370310262,0.74707729,3983.3,3981.8,0.8119]
[1734370310556,0.55,3983.3,3982.1,0.50224]
[1734370310967,0.55,3983.3,3983.0,0.50212]
[1734370311962,0.83969792,3983.2,3983.0,0.50212]
[1734370312168,1.59428473,3983.3,3982.1,0.50224]
[1734370312471,0.83990174,3983.2,3983.1,0.50212]
[1734370312766,0.55,3983.1,3982.0,0.50226]
[1734370312976,2.43422429,3983.1,3982.2,0.50223]
[1734370313181,1.59428473,3982.9,3981.4,0.50232]
[1734370313319,1.04428473,3982.6,3981.8,0.50227]
[1734370313521,1.59428473,3982.5,3981.8,0.50227]
[1734370313715,1.59428473,3982.3,3981.8,0.50227]
[1734370313916,0.55,3982.1,3981.8,0.50227]
[1734370314121,1.59428473,3982.1,3980.8,0.5024]
[1734370314367,0.55,3981.9,3981.4,0.50233]
[1734370314523,0.55,3981.7,3981.2,0.50236]
[1734370314719,0.55,3981.9,3981.2,0.50236]
[1734370315136,0.21442847,3982.0,3980.2,0.7718]
[1734370315354,1.04428473,3982.7,3982.1,0.50224]
[1734370315537,0.55,3982.6,3982.5,0.50219]
[1734370315781,0.87490819,3982.8,3981.5,0.50231]
[1734370316099,0.55,3982.7,3981.5,0.50231]
[1734370316301,0.55,3982.8,3981.5,0.50231]
[1734370316595,0.46850312,3982.7,3981.4,0.8288]
[1734370316798,1.04428473,3983.0,3982.2,0.25111]
[1734370316984,2.03327453,3982.9,3982.6,0.25108]
[1734370317295,2.33573898,3982.8,3982.6,0.25108]
[1734370317502,1.07455999,3982.7,3982.6,0.25108]
[1734370317855,1.0750132,3982.7,3982.6,0.25108]
[1734370318055,0.4266008,3982.7,3982.6,0.25108]
[1734370318499,0.24236127,3982.7,3982.6,0.25108]
[1734370318657,0.61711563,3982.7,3982.6,0.25108]
[1734370319156,0.61711563,3982.7,3981.7,0.25114]
[1734370319355,1.08393832,3982.7,3982.6,0.25108]
[1734370319801,0.24236127,3982.7,3982.6,0.25108]
[1734370320006,1.34859951,3982.9,3982.8,0.25107]
[1734370320155,0.30431478,3982.9,3982.8,0.25107]
[1734370320513,2.40866006,3982.9,3982.8,0.25107]
[1734370321353,3.45294479,3982.9,3982.8,0.25107]
[1734370322282,2.40866006,3982.9,3982.8,0.25107]
[1734370322517,3.45504005,3982.9,3982.8,0.25107]
[1734370323304,2.40866006,3982.9,3982.8,0.25107]
[1734370323500,0.30431478,3982.9,3982.8,0.25107]
[1734370323807,1.35098931,3982.9,3982.8,0.25107]
[1734370324104,3.45533459,3982.9,3982.8,0.25107]
[1734370324456,3.98152136,3982.9,3982.5,0.25109]
[1734370324811,3.98152136,3982.9,3981.9,0.50226]
[1734370324812,1.57063999,3982.7,3981.9,0.50226]
[1734370325104,1.57063999,3982.7,3982.6,0.25109]
[1734370325105,3.15328318,3982.7,3982.6,0.25109]
[1734370325269,2.10651984,3982.7,3982.6,0.25109]
[1734370325601,1.65496346,3982.8,3982.6,0.25109]
[1734370325602,6.32e-06,3982.8,3982.6,0.25109]
[1734370325771,1.57063999,3983.2,3982.6,0.25109]
[1734370325971,1.57063999,3983.3,3983.2,0.25105]
[1734370326316,1.571484,3983.5,3983.4,0.25104]
[1734370326804,2.0971484,3984.0,3983.9,0.25101]
[1734370327179,2.0971484,3984.1,3983.9,0.25101]
[1734370327356,2.0971484,3984.1,3984.0,0.251]
[1734370327703,3.69532392,3984.2,3984.1,0.25099]
[1734370327857,3.69532392,3984.3,3983.9,0.25101]
[1734370328058,2.0971484,3984.4,3984.3,0.25098]
[1734370328255,1.59816889,3984.4,3984.2,0.25099]
[1734370328505,3.40410044,3984.9,3984.2,0.25099]
[1734370328506,7.03e-06,3984.3,3984.2,0.25099]
[1734370328689,2.09477348,3984.9,3984.3,0.25098]
[1734370328859,3.33,3985.0,3984.9,0.25094]
[1734370328860,1.02032,3985.0,3984.9,0.25094]
[1734370329064,1.02032,3985.0,3984.9,3.25094]
[1734370329292,1.02032,3985.0,3984.9,0.25094]
[1734370331181,1.02032,3985.0,3984.9,1.01574]
[1734370331780,0.18702,3985.0,3984.9,20.066503]
[1734370332106,1.2013866,3985.4,3985.1,0.7914]
[1734370334505,1.2013866,3985.4,3985.3,3.8115]
[1734370334729,1.2013866,3985.4,3985.3,17.370615]
[1734370334935,0.7682166,3985.5,3985.3,17.378189]
[1734370335085,2.361815,3985.8,3985.5,1.0687]
[1734370335287,13.00452134,3986.1,3985.9,1.8678]
[1734370335486,4.17142134,3986.1,3986.0,35.22216332]
[1734370335692,4.17142134,3986.1,3986.0,35.59236244]
[1734370336037,5.9901,3986.4,3986.3,1.05]
[1734370336331,12.5618038,3986.5,3986.4,5.14127138]
[1734370336516,11.75033242,3986.5,3986.4,36.15852143]
[1734370336831,10.4222515,3986.5,3986.4,35.37872143]
[1734370337126,9.55209313,3986.5,3986.4,35.37872143]
[1734370337427,12.88209313,3986.5,3986.4,35.37872143]
[1734370337585,12.88209313,3986.5,3986.4,35.2331205]
[1734370337785,12.88209313,3986.5,3986.4,34.67164912]
[1734370338197,0.90367196,3986.5,3986.4,35.3778837]
[1734370339401,0.90367196,3986.5,3986.4,34.67164912]
[1734370339829,13.32,3986.8,3986.4,34.67164912]
[1734370339830,8.14887927,3986.8,3986.7,0.8]
[1734370340045,8.14887927,3986.8,3986.7,34.088886]
[1734370340709,8.14887927,3986.8,3986.7,34.338886]
[1734370341309,5.22552974,3986.9,3986.8,3.55]
[1734370341635,5.22552974,3986.9,3986.8,34.088886]
[1734370342094,5.22552974,3986.9,3986.8,34.8063267]
[1734370342896,1.46460974,3986.9,3986.8,34.8063267]
[1734370343090,1.46460974,3986.9,3986.8,34.5563267]
[1734370343293,1.46460974,3986.9,3986.8,34.8063267]
[1734370343538,49.95,3988.6,3987.1,0.5]
[1734370343704,49.95,3988.6,3987.1,1.7674407]
[1734370343905,49.95,3988.6,3987.1,1.4044923]
[1734370344217,49.95,3988.6,3987.1,0.8]
[1734370344423,49.95,3988.6,3987.1,1.05]
[1734370345838,49.95,3988.6,3987.1,4.05]
[1734370346139,2.95054426,3987.2,3987.1,1.05]
[1734370348651,2.95054426,3987.2,3987.1,5.553]
[1734370349152,2.95054426,3987.2,3987.1,5.9159484]
[1734370349522,2.95054426,3987.2,3987.1,5.553]
[1734370349839,2.95054426,3987.2,3987.1,5.9159484]
[1734370350516,3.06786713,3987.3,3987.2,5.053]
[1734370350851,1.81429713,3987.3,3987.2,5.053]
[1734370351411,1.81429713,3987.3,3986.9,0.3544923]
[1734370351412,1.81429713,3987.3,3986.9,0.25]
[1734370351612,1.81429713,3987.3,3986.7,0.25]
[1734370351867,1.81429713,3987.3,3986.0,0.25]
[1734370352155,2.66172684,3987.3,3985.5,0.5]
[1734370352510,2.66172684,3987.3,3985.6,1.503]
[1734370352952,2.66172684,3987.3,3985.1,0.25]
[1734370352953,0.8039,3987.2,3985.1,0.25]
[1734370353114,0.8039,3987.0,3985.2,0.25]
[1734370353760,0.8039,3987.0,3985.1,1.753]
[1734370353958,0.8039,3987.0,3985.2,0.25]
[1734370354161,0.8039,3987.0,3985.1,5.1159484]
[1734370354451,0.8039,3987.0,3985.2,0.25]
[1734370354659,0.8039,3987.0,3985.4,1.503]